Workbook

Sheet COPA TOORU HONDO
A1: Torneio : | B1: COPA TOORU HONDO
A2: Data : | B2: 2018-04-14
A3: Equipes : | B3: 39
A6: Qtde sumulas analisadas | B6: 87
A8: DESCRIÇÃO | B8: QTDE | C8: %
A9: Súmulas corretas | B9: 54 | C9: =SUM(B9/B6/100%) -> 0.6206896552
A10: Sumulas incorretas | B10: 33 | C10: =SUM(B10/B6/100%) -> 0.3793103448
A11: TOTAL | B11: 87 | C11: =(C9+C10) -> 1
A13: TIPOS DE ERROS
A14: Rodadas / Assinaladas com "/" | B14: 20 | C14: =SUM(B14/B27) -> 0.5555555556
A15: Arbitros / Nomes incompletos | B15: 5 | C15: =SUM(B15/B27) -> 0.1388888889
A16: Capitão / Não assinalado | B16: 4 | C16: =SUM(B16/B27) -> 0.1111111111
A17: Arbitros / Nomes em branco | B17: 2 | C17: =SUM(B17/B27) -> 0.05555555556
A18: Jogadores / Nomes incompletos | B18: 2 | C18: =SUM(B18/B27) -> 0.05555555556
A19: Gate / Passagem | B19: 2 | C19: =SUM(B19/B27) -> 0.05555555556
A20: Rodadas / Não assinaladas | B20: 1 | C20: =SUM(B20/B27) -> 0.02777777778
A21: Rodadas/ Incompletas | B21: 0 | C21: =SUM(B21/B33) -> 0
A22: Capitão / Falta assinaturas | C22: 0
A23: Pontuação / Individual | C23: =SUM(B23/B27) -> 0
A24: Equipe vencedora não sinalizada | C24: =SUM(B24/B27) -> 0
A25: Equipe/nomes incompletos | C25: =SUM(B25/B27) -> 0
A26: Preenchimento do desempate | C26: =SUM(B26/B27) -> 0
A27: TOTAL DE ERROS | B27: =SUM(B14:B26) -> 36 | C27: =SUM(C14:C26) -> 1
A29: Erros por Clube | B29: total de súmulas | C29: súmulas incorretas | D29: % | F29: categoria | H29: equipes | I29: nº de súmulas | J29: súmulas incorretas | K29: %
A30: SAGA | B30: 34 | C30: 6 | D30: =SUM(C30/B30) -> 0.1764705882 | F30: KOOREISHA | H30: 22 | I30: 44 | J30: 12 | K30: =J30/I30 -> 0.2727272727
A31: IBIRA | B31: 19 | C31: 6 | D31: 0.3157894737 | F31: SOONEN | H31: 17 | I31: 43 | J31: 21 | K31: =J31/I31 -> 0.488372093
A32: NIPPON | B32: 3 | C32: 3 | D32: 1
A33: URUMA | B33: 4 | C33: 2 | D33: 0.5
A34: PAULISTA | B34: 6 | C34: 1 | D34: 0.1666666667
A35: CCOB | B35: 2 | C35: 1 | D35: 0.5
A36: COOPER | B36: 2 | C36: 1 | D36: 0.5
A37: BUTANTÃ | B37: 2 | C37: 0 | D37: 0
A38: CONTINENTAL | B38: 2 | C38: 0 | D38: 0
A39: SANTO ANDRE | B39: 5 | C39: 5 | D39: 1
A40: MIZUHO | B40: 2 | C40: 2 | D40: 1
A41: CAUCAIA | B41: 6 | C41: 6 | D41: 1

Sheet Plan2

Sheet Plan3
